Workbook

Sheet Pasiūlymas
A1: Perkančioji organizacija, kuriai teikiamas pasiūlymas: | C1: VŠĮ Kauno klinikinė ligoninė
B3: PASIŪLYMAS
B4: Maisto produktų pirkimas
A6: Data: | B6: 2020-04-27
A7: Nr.: | B7: P01/1-200427
A8: Vieta: | B8: Kaunas
A10: Tiekėjo pavadinimas /Jeigu dalyvauja ūkio subjektų grupė, surašomi visi dalyvių pavadinimai/ | C10: UAB "Samsonas"
A11: Įmonės kodas /Jeigu dalyvauja ūkio subjektų grupė, surašomi visi dalyvių kodai/ | C11: 133140587
A12: PVM mokėtojo kodas /Jeigu dalyvauja ūkio subjektų grupė, surašomi visi dalyvių kodai/ | C12: LT331405811
A13: Banko pavadinimas, banko kodas, sąskaitos Nr. | C13: LT277044060002846368, SEB bankas
A14: Tiekėjo adresas /Jeigu dalyvauja ūkio subjektų grupė, surašomi visi dalyvių adresai/ | C14: Europos pr. 38, LT-46369
A15: Telefono numeris | C15: (8 37) 490670
A16: Fakso numeris
A17: El. pašto adresas | C17: ofisas@samsonas.lt
A18: Asmens, pasirašiusio pasiūlymą saugiu elektroniniu parašu, vardas, pavardė, pareigos | C18: Andrius Lepinaitis, gen. direktoriaus pavad.
A19: Asmens, įgalioto pasirašyti sutartį, vardas, pavardė, pareigos | C19: Henrikas Urbšta, generalinis direktorius
A23: 1. Šiuo pasiūlymu pažymime, kad sutinkame su visomis pirkimo sąlygomis, nustatytomis: 1) pirkimo skelbime, paskelbtame Viešųjų pirkimų įstatymo nustatyta tvarka; 2) pirkimo sąlygose ir kituose pirkimo dokumentuose (jų paaiškinimuose, papildymuose).
A25: Siūlomas pirkimo objektas visiškai atitinka pirkimo sąlygose nustatytus reikalavimus ir jo kaina yra:
A28: Nr. | B28: Pavadinimas | C28: Kiekis | D28: Mato vienetas | E28: Kaina be PVM, Eur | F28: Suma be PVM, Eur | G28: Siūlomi produktai | H28: Siūlomo produkto parametrai
A29: 1. | B29: Pienas ir pieno produktai
A30: 1.1. | B30: Pienas 2,5% | C30: 150000 | D30: L | F30: =IF(ISBLANK(E30),"", PRODUCT(C30,E30)) -> 
A31: 1.1.1. | B31: Maisto produktas turi atitikti Lietuvos Respublikos sveikatos apsaugos ministro įsakymo "Dėl pacientų maitinimo organizavimo asmens sveikatos priežiūros įstaigose tvarkos aprašo" 2019-08-20 Nr. V-1000 reikalavimus ir aktualias redakcijas
A32: 1.1.2. | B32: 2,5% riebumo
A33: 1.1.3. | B33: 0,9-1 l polietileno talpose
A34: 1.1.4. | B34: aukščiausios rūšies
A35: 1.1.5. | B35: pasterizuotas aukštoje temperatūroje (ne ultraaukštoje)
A36: 1.1.6. | B36: balto ar gelsvo atspalvio, be specifinio pašarų ar kitų medžiagų skonio ar kvapo
A37: 1.1.7. | B37: neužšaldytas
A38: 1.1.8. | B38: Ekologiškas – turi būti ekologiškai pagamintas pagal tarybos reglamentą Nr. 834/2007 „Dėl ekologinės gamybos ir ekologiškų produktų ženklinimo iir panaikinantis reglamentą (EEB) Nr. 2092/91“, turi būti pateikti atitiktį reikalavimams įrodantys dokumentai: ekologinės gamybos patvirtinamieji dokumentai, sertifikatai ar kiti lygiaverčiai įrodymai
A39: 1.1.9. | B39: Produktai turi būti ženklinti nurodant: pavadinimą, kiekį, gamintoją, adresą, telefono numerį, standartą, pagaminimo datą, tinkamumą vartoti iki (nurodant datą), 100g maistinę ir energetinę vertę, laikymo sąlygas
A40: 1.2. | B40: Kefyras 2,5% | C40: 30000 | D40: L | F40: =IF(ISBLANK(E40),"", PRODUCT(C40,E40)) -> 
A41: 1.2.1. | B41: Maisto produktas turi atitikti Lietuvos Respublikos sveikatos apsaugos ministro įsakymo "Dėl pacientų maitinimo organizavimo asmens sveikatos priežiūros įstaigose tvarkos aprašo" 2019-08-20 Nr. V-1000 reikalavimus ir aktualias redakcijas
A42: 1.2.2. | B42: 2,5% riebumo
A43: 1.2.3. | B43: 0,9-1 l polietileno talpose
A44: 1.2.4. | B44: pagamintas iš aukščiausios rūšies pieno
A45: 1.2.5. | B45: balto ar gelsvo atspalvio, be specifinio pašarų ar kitų medžiagų skonio ar kvapo
A46: 1.2.6. | B46: neužšaldytas
A47: 1.2.7. | B47: Produktai turi būti ženklinti nurodant: pavadinimą, kiekį, gamintoją, adresą, telefono numerį, standartą, pagaminimo datą, tinkamumą vartoti iki (nurodant datą), 100g maistinę ir energetinę vertę, laikymo sąlygas
A48: 1.3. | B48: Sviestas 82% (luitais) | C48: 5000 | D48: kg | F48: =IF(ISBLANK(E48),"", PRODUCT(C48,E48)) -> 
A49: 1.3.1. | B49: Maisto produktas turi atitikti Lietuvos Respublikos sveikatos apsaugos ministro įsakymo "Dėl pacientų maitinimo organizavimo asmens sveikatos priežiūros įstaigose tvarkos aprašo" 2019-08-20 Nr. V-1000 reikalavimus ir aktualias redakcijas
A50: 1.3.2. | B50: 82% riebumo
A51: 1.3.3. | B51: luitais po 20-25 kg
A52: 1.3.4. | B52: pagamintas iš aukščiausios rūšies pieno
A53: 1.3.5. | B53: vienalytės konsistencijos, be augalinių riebalų priedų, gelsvos spalvos
A54: 1.3.6. | B54: neužšaldytas
A55: 1.3.7. | B55: Produktai turi būti ženklinti nurodant: pavadinimą, kiekį, gamintoją, adresą, telefono numerį, standartą, pagaminimo datą, tinkamumą vartoti iki (nurodant datą), 100g maistinę ir energetinę vertę, laikymo sąlygas
A56: 1.4. | B56: Sviestas 82% (pakeliais) | C56: 15000 | D56: kg | F56: =IF(ISBLANK(E56),"", PRODUCT(C56,E56)) -> 
A57: 1.4.1. | B57: Maisto produktas turi atitikti Lietuvos Respublikos sveikatos apsaugos ministro įsakymo "Dėl pacientų maitinimo organizavimo asmens sveikatos priežiūros įstaigose tvarkos aprašo" 2019-08-20 Nr. V-1000 reikalavimus ir aktualias redakcijas
A58: 1.4.2. | B58: 82% riebumo
A59: 1.4.3. | B59: luitais po 0,18 arba 0,2 kg
A60: 1.4.4. | B60: pagamintas iš aukščiausios rūšies pieno
A61: 1.4.5. | B61: vienalytės konsistencijos, be augalinių riebalų priedų, gelsvos spalvos
A62: 1.4.6. | B62: neužšaldytas
A63: 1.4.7. | B63: Produktai turi būti ženklinti nurodant: pavadinimą, kiekį, gamintoją, adresą, telefono numerį, standartą, pagaminimo datą, tinkamumą vartoti iki (nurodant datą), 100g maistinę ir energetinę vertę, laikymo sąlygas
A64: 1.5. | B64: Grietinė 30% | C64: 15000 | D64: kg | F64: =IF(ISBLANK(E64),"", PRODUCT(C64,E64)) -> 
A65: 1.5.1. | B65: Maisto produktas turi atitikti Lietuvos Respublikos sveikatos apsaugos ministro įsakymo "Dėl pacientų maitinimo organizavimo asmens sveikatos priežiūros įstaigose tvarkos aprašo" 2019-08-20 Nr. V-1000 reikalavimus ir aktualias redakcijas
A66: 1.5.2. | B66: 30% riebumo
A67: 1.5.3. | B67: pristatoma 1-5 kg kibirėliuose
A68: 1.5.4. | B68: pagamintas iš aukščiausios rūšies pieno
A69: 1.5.5. | B69: balto ar gelsvo atspalvio, be specifinio pašarų ar kitų medžiagų skonio ar kvapo
A70: 1.5.6. | B70: be augalinių riebalų priedų
A71: 1.5.7. | B71: Produktai turi būti ženklinti nurodant: pavadinimą, kiekį, gamintoją, adresą, telefono numerį, standartą, pagaminimo datą, tinkamumą vartoti iki (nurodant datą), 100g maistinę ir energetinę vertę, laikymo sąlygas
A72: 1.6. | B72: varškė 9% (po 1 kg) | C72: 5000 | D72: kg | F72: =IF(ISBLANK(E72),"", PRODUCT(C72,E72)) -> 
A73: 1.6.1. | B73: Maisto produktas turi atitikti Lietuvos Respublikos sveikatos apsaugos ministro įsakymo "Dėl pacientų maitinimo organizavimo asmens sveikatos priežiūros įstaigose tvarkos aprašo" 2019-08-20 Nr. V-1000 reikalavimus ir aktualias redakcijas
A74: 1.6.2. | B74: 9% riebumo
A75: 1.6.3. | B75: pristatoma fasuota po 1 +/-0,1kg
A76: 1.6.4. | B76: iš aukščiausios rūšies pieno
A77: 1.6.5. | B77: spalva balta, baltai gelsva, konsistencija vienalytė, gali būti kruopėta, puri
A78: 1.6.6. | B78: skonis ne rūgštus
A79: 1.6.7. | B79: neužšaldytas
A80: 1.6.8. | B80: Produktai turi būti ženklinti nurodant: pavadinimą, kiekį, gamintoją, adresą, telefono numerį, standartą, pagaminimo datą, tinkamumą vartoti iki (nurodant datą), 100g maistinę ir energetinę vertę, laikymo sąlygas
A81: 1.7. | B81: varškė 9% (po 5 kg) | C81: 10000 | D81: kg | F81: =IF(ISBLANK(E81),"", PRODUCT(C81,E81)) -> 
A82: 1.7.1. | B82: Maisto produktas turi atitikti Lietuvos Respublikos sveikatos apsaugos ministro įsakymo "Dėl pacientų maitinimo organizavimo asmens sveikatos priežiūros įstaigose tvarkos aprašo" 2019-08-20 Nr. V-1000 reikalavimus ir aktualias redakcijas
A83: 1.7.2. | B83: 9% riebumo
A84: 1.7.3. | B84: pristatoma fasuota po 5 +/-0,2kg
A85: 1.7.4. | B85: iš aukščiausios rūšies pieno
A86: 1.7.5. | B86: spalva balta, baltai gelsva, konsistencija vienalytė, gali būti kruopėta, puri
A87: 1.7.6. | B87: skonis ne rūgštus
A88: 1.7.7. | B88: neužšaldytas
A89: 1.7.8. | B89: Produktai turi būti ženklinti nurodant: pavadinimą, kiekį, gamintoją, adresą, telefono numerį, standartą, pagaminimo datą, tinkamumą vartoti iki (nurodant datą), 100g maistinę ir energetinę vertę, laikymo sąlygas
A90: 1.8. | B90: Fermentinis sūris 45% (ne sūrio gaminys) | C90: 8000 | D90: kg | F90: =IF(ISBLANK(E90),"", PRODUCT(C90,E90)) -> 
A91: 1.8.1. | B91: Maisto produktas turi atitikti Lietuvos Respublikos sveikatos apsaugos ministro įsakymo "Dėl pacientų maitinimo organizavimo asmens sveikatos priežiūros įstaigose tvarkos aprašo" 2019-08-20 Nr. V-1000 reikalavimus ir aktualias redakcijas
A92: 1.8.2. | B92: 45% riebumo
A93: 1.8.3. | B93: fasuotas gabalais iki 5 kg
A94: 1.8.4. | B94: pagamintas iš aukščiausios rūšies pieno
A95: 1.8.5. | B95: stačiakampio formos sūris, padengtaspolimerine plėvele
A96: 1.8.6. | B96: sūrio paviršius neapdžiuvęs, ne apipelijęs, konsistencija rišli, standoka, spalva nuo gelsvos iki geltonos, piešinio pjūvyje gali būti truputis tuštumų
A97: 1.8.7. | B97: Produktai turi būti ženklinti nurodant: pavadinimą, kiekį, gamintoją, adresą, telefono numerį, standartą, pagaminimo datą, tinkamumą vartoti iki (nurodant datą), 100g maistinę ir energetinę vertę, laikymo sąlygas
A98: 1.9. | B98: Natūralus jogurtas | C98: 20000 | D98: kg | F98: =IF(ISBLANK(E98),"", PRODUCT(C98,E98)) -> 
A99: 1.9.1. | B99: Maisto produktas turi atitikti Lietuvos Respublikos sveikatos apsaugos ministro įsakymo "Dėl pacientų maitinimo organizavimo asmens sveikatos priežiūros įstaigose tvarkos aprašo" 2019-08-20 Nr. V-1000 reikalavimus ir aktualias redakcijas
A100: 1.9.2. | B100: 2,4-3,9% riebumo
A101: 1.9.3. | B101: fasuotas indeliuose po 120 +/- 10 g
A102: 1.9.4. | B102: pagamintas iš aukščiausios rūšies pieno
A103: 1.9.5. | B103: natūralus, be priedų
A104: 1.9.6. | B104: Ekologiškas – turi būti ekologiškai pagamintas pagal tarybos reglamentą Nr. 834/2007 „Dėl ekologinės gamybos ir ekologiškų produktų ženklinimo iir panaikinantis reglamentą (EEB) Nr. 2092/91“, turi būti pateikti atitiktį reikalavimams įrodantys dokumentai: ekologinės gamybos patvirtinamieji dokumentai, sertifikatai ar kiti lygiaverčiai įrodymai
A105: 1.9.7. | B105: Produktai turi būti ženklinti nurodant: pavadinimą, kiekį, gamintoją, adresą, telefono numerį, standartą, pagaminimo datą, tinkamumą vartoti iki (nurodant datą), 100g maistinę ir energetinę vertę, laikymo sąlygas
A106: 1.10. | B106: Grūdėta varškė | C106: 3000 | D106: kg | F106: =IF(ISBLANK(E106),"", PRODUCT(C106,E106)) -> 
A107: 1.10.1. | B107: Maisto produktas turi atitikti Lietuvos Respublikos sveikatos apsaugos ministro įsakymo "Dėl pacientų maitinimo organizavimo asmens sveikatos priežiūros įstaigose tvarkos aprašo" 2019-08-20 Nr. V-1000 reikalavimus ir aktualias redakcijas
A108: 1.10.2. | B108: 7 +/- 1% riebumo
A109: 1.10.3. | B109: fasuotas po 150-200 g
A110: 1.10.4. | B110: pagamintas iš aukščiausios rūšies pieno
A111: 1.10.5. | B111: be priedų
A112: 1.10.6. | B112: Produktai turi būti ženklinti nurodant: pavadinimą, kiekį, gamintoją, adresą, telefono numerį, standartą, pagaminimo datą, tinkamumą vartoti iki (nurodant datą), 100g maistinę ir energetinę vertę, laikymo sąlygas
A113: 1.11. | B113: Šaltibarščių kefyras | C113: 3000 | D113: L | F113: =IF(ISBLANK(E113),"", PRODUCT(C113,E113)) -> 
A114: 1.11.1. | B114: Maisto produktas turi atitikti Lietuvos Respublikos sveikatos apsaugos ministro įsakymo "Dėl pacientų maitinimo organizavimo asmens sveikatos priežiūros įstaigose tvarkos aprašo" 2019-08-20 Nr. V-1000 reikalavimus ir aktualias redakcijas
A115: 1.11.2. | B115: 5-6% riebumo
A116: 1.11.3. | B116: 0,9-1 l polietileno talpose
A117: 1.11.4. | B117: pagamintas iš aukščiausios rūšies pieno
A118: 1.11.5. | B118: balto ar gelsvo atspalvio, be specifinio pašarų ar kitų medžiagų skonio ar kvapo
A119: 1.11.6. | B119: be priedų
A120: 1.11.7. | B120: Produktai turi būti ženklinti nurodant: pavadinimą, kiekį, gamintoją, adresą, telefono numerį, standartą, pagaminimo datą, tinkamumą vartoti iki (nurodant datą), 100g maistinę ir energetinę vertę, laikymo sąlygas
A121: 1.12. | B121: Varškės sūris 22% | C121: 8000 | D121: kg | F121: =IF(ISBLANK(E121),"", PRODUCT(C121,E121)) -> 
A122: 1.12.1. | B122: Maisto produktas turi atitikti Lietuvos Respublikos sveikatos apsaugos ministro įsakymo "Dėl pacientų maitinimo organizavimo asmens sveikatos priežiūros įstaigose tvarkos aprašo" 2019-08-20 Nr. V-1000 reikalavimus ir aktualias redakcijas
A123: 1.12.2. | B123: 22% riebumo
A124: 1.12.3. | B124: pjaustant netrupantis
A125: 1.12.4. | B125: pagamintas iš aukščiausios rūšies pieno
A126: 1.12.5. | B126: fasuotas vakuuminėje pakuotėje po 300-600 g
A127: 1.12.6. | B127: nerūgštus
A128: 1.12.7. | B128: Produktai turi būti ženklinti nurodant: pavadinimą, kiekį, gamintoją, adresą, telefono numerį, standartą, pagaminimo datą, tinkamumą vartoti iki (nurodant datą), 100g maistinę ir energetinę vertę, laikymo sąlygas
E129: Suma be PVM | F129: =IF((COUNT(C30:C128)<>COUNT(F30:F128)),"", SUM(F30:F128)) ->  | G129: =IF((COUNT(C30:C128)<>COUNT(F30:F128)),"Neužpildytos visų objektų kainos", "") -> Neužpildytos visų objektų kainos
E130: PVM suma
E131: Suma su PVM | F131: =IF(ISBLANK(F130), "", SUM(F129:F130)) -> 
A133: 2. | B133: Mėsa (kiauliena)
A134: 2.1. | B134: Kiaulienos kumpis | C134: 20000 | D134: kg | F134: =IF(ISBLANK(E134),"", PRODUCT(C134,E134)) -> 
A135: 2.1.1. | B135: Maisto produktas turi atitikti Lietuvos Respublikos sveikatos apsaugos ministro įsakymo "Dėl pacientų maitinimo organizavimo asmens sveikatos priežiūros įstaigose tvarkos aprašo" 2019-08-20 Nr. V-1000 reikalavimus ir aktualias redakcijas
A136: 2.1.2. | B136: Atvesinta iki 0-4 laipsnių
A137: 2.1.3. | B137: I-II kategorijos
A138: 2.1.4. | B138: be sumušimų, kraujosruvų
A139: 2.1.5. | B139: specifinio nepašvinkusios žalios kiaulienos kvapo
A140: 2.1.6. | B140: mėsa neapdžiuvusi
A141: 2.1.7. | B141: tiekiama gražinamuose konteineriuose
A142: 2.1.8. | B142: Produktai turi būti ženklinti nurodant: pavadinimą, kiekį, gamintoją, adresą, telefono numerį, standartą, pagaminimo datą, tinkamumą vartoti iki (nurodant datą), 100g maistinę ir energetinę vertę, laikymo sąlygas
A143: 2.1.9. | B143: vakuuminėje pakuotėje
A144: 2.1.10. | B144: pilnai išgyslintas, iškaulintas, nusausintas
A145: 2.1.11. | B145: be odos, kaulų
A146: 2.2. | B146: Šoninė be kaulo | C146: 10000 | D146: kg | F146: =IF(ISBLANK(E146),"", PRODUCT(C146,E146)) -> 
A147: 2.2.1. | B147: Maisto produktas turi atitikti Lietuvos Respublikos sveikatos apsaugos ministro įsakymo "Dėl pacientų maitinimo organizavimo asmens sveikatos priežiūros įstaigose tvarkos aprašo" 2019-08-20 Nr. V-1000 reikalavimus ir aktualias redakcijas
A148: 2.2.2. | B148: Atvesinta iki 0-4 laipsnių
A149: 2.2.3. | B149: I-II kategorijos
A150: 2.2.4. | B150: be sumušimų, kraujosruvų
A151: 2.2.5. | B151: lašinys nepageltęs, be oksidacijos požymių
A152: 2.2.6. | B152: specifinio nepašvinkusios žalios kiaulienos kvapo
A153: 2.2.7. | B153: mėsa neapdžiuvusi
A154: 2.2.8. | B154: turi būti įskaitomas aiškus kategorijos žymuo
A155: 2.2.9. | B155: tiekiama gražinamuose konteineriuose
A156: 2.2.10. | B156: Produktai turi būti ženklinti nurodant: pavadinimą, kiekį, gamintoją, adresą, telefono numerį, standartą, pagaminimo datą, tinkamumą vartoti iki (nurodant datą), 100g maistinę ir energetinę vertę, laikymo sąlygas
A157: 2.2.11. | B157: lašinio ne daugiau kaip 50 %
A158: 2.3. | B158: Kotletinė | C158: 15000 | D158: kg | F158: =IF(ISBLANK(E158),"", PRODUCT(C158,E158)) -> 
A159: 2.3.1. | B159: Maisto produktas turi atitikti Lietuvos Respublikos sveikatos apsaugos ministro įsakymo "Dėl pacientų maitinimo organizavimo asmens sveikatos priežiūros įstaigose tvarkos aprašo" 2019-08-20 Nr. V-1000 reikalavimus ir aktualias redakcijas
A160: 2.3.2. | B160: Atvesinta iki 0-4 laipsnių
A161: 2.3.3. | B161: I-II kategorijos
A162: 2.3.4. | B162: be sumušimų, kraujosruvų
A163: 2.3.5. | B163: lašinys nepageltęs, be oksidacijos požymių
A164: 2.3.6. | B164: specifinio nepašvinkusios žalios kiaulienos kvapo
A165: 2.3.7. | B165: mėsa neapdžiuvusi
A166: 2.3.8. | B166: tiekiama gražinamuose konteineriuose
A167: 2.3.9. | B167: Produktai turi būti ženklinti nurodant: pavadinimą, kiekį, gamintoją, adresą, telefono numerį, standartą, pagaminimo datą, tinkamumą vartoti iki (nurodant datą), 100g maistinę ir energetinę vertę, laikymo sąlygas
A168: 2.3.10. | B168: neriebi
E169: Suma be PVM | F169: =IF((COUNT(C134:C168)<>COUNT(F134:F168)),"", SUM(F134:F168)) ->  | G169: =IF((COUNT(C134:C168)<>COUNT(F134:F168)),"Neužpildytos visų objektų kainos", "") -> Neužpildytos visų objektų kainos
E170: PVM suma
E171: Suma su PVM | F171: =IF(ISBLANK(F170), "", SUM(F169:F170)) -> 
A173: 3. | B173: Mėsa (jautiena)
A174: 3.1. | B174: Jautienos kumpis | C174: 15000 | D174: kg | E174: 5.14 | F174: =IF(ISBLANK(E174),"", PRODUCT(C174,E174)) -> 77100 | G174: Jautienos kumpis
A175: 3.1.1. | B175: pilnai išgyslintas, iškaulintas, nusausintas | H175: išgyslintas, iškailintas, nusausintas
A176: 3.1.2. | B176: atvėsintas iki 0-4 laipsnių | H176: atvėsintas (0..+6 C)
A177: 3.1.3. | B177: žemos riebumo klasės, aukštos raumeningumo klasės | H177: žemos riebumo ir aukštos raumeningumo klasės
A178: 3.1.4. | B178: nešaldytas | H178: nešaldytas
A179: 3.1.5. | B179: supakuotas vakuuminėse pakuotėse | H179: vakuuminė pakuotė
A180: 3.1.6. | B180: Maisto produktas turi atitikti Lietuvos Respublikos sveikatos apsaugos ministro įsakymo "Dėl pacientų maitinimo organizavimo asmens sveikatos priežiūros įstaigose tvarkos aprašo" 2019-08-20 Nr. V-1000 reikalavimus ir aktualias redakcijas | H180: atitinka
A181: 3.1.7. | B181: Produktai turi būti ženklinti nurodant: pavadinimą, kiekį, gamintoją, adresą, telefono numerį, standartą, pagaminimo datą, tinkamumą vartoti iki (nurodant datą), 100g maistinę ir energetinę vertę, laikymo sąlygas | H181: Produkto ženklinimas atitinka Lietuvos respublikos norminių teisės aktų reikalavimus
E182: Suma be PVM | F182: =IF((COUNT(C174:C181)<>COUNT(F174:F181)),"", SUM(F174:F181)) -> 77100 | G182: =IF((COUNT(C174:C181)<>COUNT(F174:F181)),"Neužpildytos visų objektų kainos", "") -> 
E183: PVM suma | F183: =$F$182*0.21 -> 16191
E184: Suma su PVM | F184: =IF(ISBLANK(F183), "", SUM(F182:F183)) -> 93291
A186: 4. | B186: Mėsa (paukštiena)
A187: 4.1. | B187: Viščiukų broilerių ketvirčiai | C187: 25000 | D187: kg | E187: 1.38 | F187: =IF(ISBLANK(E187),"", PRODUCT(C187,E187)) -> 34500 | G187: Viščiukų broilerių ketvirčiai (šaldyti)
A188: 4.1.1. | B188: kategorija I | H188: I kategorija
A189: 4.1.2. | B189: šaldytos | H189: šaldyti
A190: 4.1.3. | B190: be padaigų | H190: be padaigų
A191: 4.1.4. | B191: oda švari be kraujo, įplėšimų, kraujosruvų | H191: oda švari be kraujo, įplėšimų, kraujosrūvų
A192: 4.1.5. | B192: spalva gelsva su rausvu atspalviu ir be jo | H192: spalva geslva su rausvu atspalviu
A193: 4.1.6. | B193: raumenys gerai išsivystę | H193: gerai išsivystę raumenys
A194: 4.1.7. | B194: vakuuminėse pakuotėse | H194: vakuuminėje pakuotėje
A195: 4.1.8. | B195: ketvirčio svoris 500-600 g | H195: kevirčio svoris nuo 500g iki 600g
A196: 4.1.9. | B196: Maisto produktas turi atitikti Lietuvos Respublikos sveikatos apsaugos ministro įsakymo "Dėl pacientų maitinimo organizavimo asmens sveikatos priežiūros įstaigose tvarkos aprašo" 2019-08-20 Nr. V-1000 reikalavimus ir aktualias redakcijas | H196: atitinka
A197: 4.1.10. | B197: Produktai turi būti ženklinti nurodant: pavadinimą, kiekį, gamintoją, adresą, telefono numerį, standartą, pagaminimo datą, tinkamumą vartoti iki (nurodant datą), 100g maistinę ir energetinę vertę, laikymo sąlygas | H197: Produkto ženklinimas atitinka Lietuvos respublikos norminių teisės aktų reikalavimus
E198: Suma be PVM | F198: =IF((COUNT(C187:C197)<>COUNT(F187:F197)),"", SUM(F187:F197)) -> 34500 | G198: =IF((COUNT(C187:C197)<>COUNT(F187:F197)),"Neužpildytos visų objektų kainos", "") -> 
E199: PVM suma | F199: =$F$198*0.21 -> 7245
E200: Suma su PVM | F200: =IF(ISBLANK(F199), "", SUM(F198:F199)) -> 41745
A202: 5. | B202: Mėsos gaminiai (kiaulienos)
A203: 5.1. | B203: Natūralus virtas kiaulienos vyniotinis | C203: 4000 | D203: kg | E203: 4.88 | F203: =IF(ISBLANK(E203),"", PRODUCT(C203,E203)) -> 19520 | G203: Virtas "Kleboniškas" kiaulienos vyniotinis
A204: 5.1.1. | B204: Maisto produktas turi atitikti Lietuvos Respublikos sveikatos apsaugos ministro įsakymo "Dėl pacientų maitinimo organizavimo asmens sveikatos priežiūros įstaigose tvarkos aprašo" 2019-08-20 Nr. V-1000 reikalavimus ir aktualias redakcijas | H204: Atitinka
A205: 5.1.2. | B205: aukščiausios rūšies | H205: aukščiausia rūšis
A206: 5.1.3. | B206: paviršius švarus, sausas | H206: paviršius švarus, sausas
A207: 5.1.4. | B207: be kaulų, kremzlių, odos | H207: be kaulų, kremzlių, odos
A208: 5.1.5. | B208: suvyniotas į polietileno plėvelę | H208: vakuuminis įpakavavimas
A209: 5.1.6. | B209: konsistencija standi, skonis malonus, be pašalio kvapo ir skonio | H209: konsistencija standi, skonis malonus, be pašalinio kvapo ir skonio
A210: 5.1.7. | B210: pailgos formos, gaminio masė 1-2 kg, 6-8 cm diametro | H210: pailgos formos, masė ~1 kg
A211: 5.1.8. | B211: pristatomas gražinamose dėžėse pritaikytose maisto gabenimui | H211: Pristatoma maisto gabenimui skirtose dėžėse
A212: 5.1.9. | B212: Produktai turi būti ženklinti nurodant: pavadinimą, kiekį, gamintoją, adresą, telefono numerį, standartą, pagaminimo datą, tinkamumą vartoti iki (nurodant datą), 100g maistinę ir energetinę vertę, laikymo sąlygas | H212: Produkto ženklinimas atitinka Lietuvos respublikos norminių teisės aktų reikalavimus
A213: 5.2. | B213: Virta dešra | C213: 4000 | D213: kg | E213: 2.24 | F213: =IF(ISBLANK(E213),"", PRODUCT(C213,E213)) -> 8960 | G213: Virta Samsono pieniška dešra
... 555 more rows

Sheet Subtiekėjai
A2: Sutarties vykdymui numatome pasitelkti šiuos subtiekėjus / subteikėjus / subrangovus (įrašyti visus subtiekėjus / subteikėjus / subrangovus nepriklausomai nuo tiekiamų prekių/ teikiamų paslaugų/ atliekamų darbų vertės):
A4: Subtiekėjo / subteikėjo / subrangovo (-ų) pavadinimas (-ai) | C4: Adresas | F4: Trumpas aprašymas | I4: Procentas nuo pasiūlymo kainos be PVM
A11: Jeigu pirkimo dokumentų 18 punkte numatytas subtiekimo / subteikimo / subrangos apribojimas: Mes patvirtiname, kad subtiekėjams / subteikėjams / subrangovams (tiekėjams, kuriuos pasamdysime dalies sutartyje numatytų prekių tiekimui /paslaugų teikimui / darbų atlikimui) perduodamų tiekti prekių / teikti paslaugų/ atlikti darbų dalis neviršys proc. pasiūlymo kainos be PVM.
A13: Mes patvirtiname, kad esame / nesame (nereikalingą išbraukti) laikomi asocijuotais (susijusiais) su Perkančiąja organizacija pagal Lietuvos Respublikoje galiojančių teisės aktų (Lietuvos Respublikos pelno mokesčio, Lietuvos Respublikos pridėtinės vertės mokesčio ir Lietuvos Respublikos gyventojų pajamų mokesčio įstatymų) nuostatas.
A15: Kartu su pasiūlymu pateikiami šie dokumentai:
A17: Eil.Nr. | B17: "Pateiktų skaitmeninių dokumentų (ar jų kopijų) pavadinimas (pasiūlymą sudarančių konfidencialių dokumentų pavadinimai pažymėti prierašu KONFIDENCIALU)" | H17: Prisegtos bylos (failo) pavadinimas
A25: Pasiūlymo galiojimo užtikrinimui pateikiame :
A27: (Nurodyti užtikrinimo būdą, dydį, dokumentus)
A29: Pasiūlymas galioja iki termino, nustatyto pirkimo dokumentuose. Pasiūlymo neatskiriama dalis yra (rašoma, jeigu buvo reikalauta prie pasiūlymo pridėti atitinkamą dokumentą)
A33: Tiekėjo arba jo įgalioto asmens pareigų pavadinimas
A36: Pasirašančio asmens vardas ir pavardė
A39: **kadangi visas pasiūlymas pasirašomas saugiu elektroniniu parašu, šio dokumento atskirai pasirašyti neprivaloma.
A100: 3878-1 2020-03-17 10:08:06
